[Event "*** Titled Tuesday Blitz"]
[Site "Chess.com"]
[Date "2020.04.14"]
[Round "5"]
[White "erlesfar"]
[Black "AcostaPablo"]
[Result "0-1"]
[WhiteElo "2254"]
[BlackElo "2498"]
[TimeControl "180+1"]
[EndTime "10:50:17 PDT"]
[Termination "AcostaPablo won by resignation"]

1. e4 {[%clk 0:03:00.9]} 1... c5 {[%clk 0:02:58.6]} 2. c3 {[%clk 0:02:57]} 2...
d5 {[%clk 0:02:58.1]} 3. exd5 {[%clk 0:02:55.8]} 3... Qxd5 {[%clk 0:02:58.8]} 4.
d4 {[%clk 0:02:55.9]} 4... Nf6 {[%clk 0:02:59.3]} 5. Nf3 {[%clk 0:02:54.8]} 5...
Nc6 {[%clk 0:02:56.1]} 6. a3 {[%clk 0:02:50.8]} 6... Bg4 {[%clk 0:02:54.1]} 7.
Be2 {[%clk 0:02:46.9]} 7... e6 {[%clk 0:02:49.9]} 8. O-O {[%clk 0:02:45.2]} 8...
Be7 {[%clk 0:02:47.9]} 9. h3 {[%clk 0:02:43.8]} 9... Bh5 {[%clk 0:02:44]} 10.
Be3 {[%clk 0:02:38.5]} 10... cxd4 {[%clk 0:02:40.4]} 11. cxd4 {[%clk 0:02:37.9]}
11... O-O {[%clk 0:02:40.8]} 12. Nc3 {[%clk 0:02:37.3]} 12... Qd6 {[%clk
0:02:41.1]} 13. Qb3 {[%clk 0:02:32.2]} 13... a6 {[%clk 0:02:39.4]} 14. Rfd1
{[%clk 0:02:30.6]} 14... b5 {[%clk 0:02:39.1]} 15. Rac1 {[%clk 0:02:19.8]} 15...
Rfd8 {[%clk 0:02:23]} 16. Qa2 {[%clk 0:01:51.6]} 16... Rac8 {[%clk 0:02:14.5]}
17. b4 {[%clk 0:01:48.8]} 17... Bg6 {[%clk 0:02:03]} 18. Nh4 {[%clk 0:01:26.4]}
18... Bh5 {[%clk 0:01:48.2]} 19. Bxh5 {[%clk 0:01:15.2]} 19... Nxh5 {[%clk
0:01:47.8]} 20. Nf3 {[%clk 0:01:13.9]} 20... Nf6 {[%clk 0:01:45.9]} 21. Bg5
{[%clk 0:01:11.5]} 21... h6 {[%clk 0:01:39]} 22. Bxf6 {[%clk 0:01:10.5]} 22...
Bxf6 {[%clk 0:01:39.5]} 23. Ne4 {[%clk 0:01:10]} 23... Qf4 {[%clk 0:01:38.4]}
24. Nxf6+ {[%clk 0:01:00.8]} 24... gxf6 {[%clk 0:01:38.3]} 25. Rc5 {[%clk
0:00:50.9]} 25... Ne7 {[%clk 0:01:29.6]} 26. Qc2 {[%clk 0:00:46.1]} 26... Kg7
{[%clk 0:01:19.2]} 27. Rd3 {[%clk 0:00:38.6]} 27... Qe4 {[%clk 0:01:17.2]} 28.
Qd1 {[%clk 0:00:16.6]} 28... Rc6 {[%clk 0:01:11]} 29. Rxc6 {[%clk 0:00:14.6]}
29... Nxc6 {[%clk 0:01:10.7]} 30. d5 {[%clk 0:00:14.9]} 30... Rxd5 {[%clk
0:01:10.3]} 31. Rxd5 {[%clk 0:00:14.5]} 31... exd5 {[%clk 0:01:10.9]} 32. Nd2
{[%clk 0:00:12.8]} 32... Qd4 {[%clk 0:01:09.6]} 33. Qe2 {[%clk 0:00:12.7]} 33...
Ne5 {[%clk 0:01:09.5]} 34. g3 {[%clk 0:00:12.3]} 34... Qa1+ {[%clk 0:01:08.5]}
35. Kg2 {[%clk 0:00:11.5]} 35... Qxa3 {[%clk 0:01:09.1]} 36. Qd1 {[%clk
0:00:09.2]} 36... Qxb4 {[%clk 0:01:07]} 0-1

[Event "*** Titled Tuesday Blitz"]
[Site "Chess.com"]
[Date "2020.04.14"]
[Round "5"]
[White "chito89"]
[Black "Savagelittlemole"]
[Result "1/2-1/2"]
[WhiteElo "2784"]
[BlackElo "2616"]
[TimeControl "180+1"]
[EndTime "10:50:18 PDT"]
[Termination "Game drawn by agreement"]

1. d4 {[%clk 0:02:51.9]} 1... d6 {[%clk 0:02:59.1]} 2. e4 {[%clk 0:02:47.8]}
2... Nf6 {[%clk 0:02:59.1]} 3. Nc3 {[%clk 0:02:44.2]} 3... e5 {[%clk 0:02:59]}
4. dxe5 {[%clk 0:02:39.8]} 4... dxe5 {[%clk 0:02:59.9]} 5. Qxd8+ {[%clk
0:02:40.1]} 5... Kxd8 {[%clk 0:03:00.8]} 6. Bc4 {[%clk 0:02:39.8]} 6... Ke8
{[%clk 0:02:56.3]} 7. Nge2 {[%clk 0:02:15.1]} 7... Bd6 {[%clk 0:02:54.7]} 8. Bg5
{[%clk 0:02:08.3]} 8... c6 {[%clk 0:02:50.7]} 9. O-O-O {[%clk 0:02:06.7]} 9...
Ke7 {[%clk 0:02:50]} 10. Bxf7 {[%clk 0:01:42.9]} 10... Rd8 {[%clk 0:02:33.5]}
11. Bb3 {[%clk 0:01:35]} 11... Nd7 {[%clk 0:02:30.6]} 12. Rd2 {[%clk 0:01:12.4]}
12... Nc5 {[%clk 0:02:27.9]} 13. Rhd1 {[%clk 0:01:10.8]} 13... Nxb3+ {[%clk
0:02:23]} 14. axb3 {[%clk 0:01:09.7]} 14... Be6 {[%clk 0:02:19.2]} 15. f4 {[%clk
0:01:08.3]} 15... h6 {[%clk 0:02:15.1]} 16. Bh4 {[%clk 0:01:00.6]} 16... exf4
{[%clk 0:02:10.9]} 17. Rxd6 {[%clk 0:00:59.9]} 17... Rxd6 {[%clk 0:02:08.4]} 18.
e5 {[%clk 0:01:00.2]} 18... Rxd1+ {[%clk 0:02:03.2]} 19. Nxd1 {[%clk 0:01:00.7]}
19... g5 {[%clk 0:01:59.4]} 20. exf6+ {[%clk 0:01:01.2]} 20... Kxf6 {[%clk
0:01:57.3]} 21. Bf2 {[%clk 0:01:02]} 21... Bg4 {[%clk 0:01:51.3]} 22. Ndc3
{[%clk 0:00:57.8]} 22... Bxe2 {[%clk 0:01:48.5]} 23. Nxe2 {[%clk 0:00:58.7]}
23... Re8 {[%clk 0:01:44.6]} 24. Kd2 {[%clk 0:00:55.8]} 24... a6 {[%clk
0:01:42.5]} 25. b4 {[%clk 0:00:51.4]} 25... Kf5 {[%clk 0:01:38.6]} 26. Nd4+
{[%clk 0:00:50.9]} 26... Ke4 {[%clk 0:01:36.8]} 27. Nf3 {[%clk 0:00:36.6]} 27...
g4 {[%clk 0:01:31.6]} 28. Nh4 {[%clk 0:00:34.9]} 28... h5 {[%clk 0:01:28]} 29.
Ke2 {[%clk 0:00:30.3]} 29... Rd8 {[%clk 0:01:23.1]} 30. c3 {[%clk 0:00:28.1]}
30... Ra8 {[%clk 0:01:16.9]} 31. Bb6 {[%clk 0:00:27.3]} 31... Rg8 {[%clk
0:01:10.9]} 32. Bc5 {[%clk 0:00:27]} 32... Rd8 {[%clk 0:01:02.9]} 33. Bd4 {[%clk
0:00:25]} 33... Ra8 {[%clk 0:00:57.2]} 34. Ng6 {[%clk 0:00:24.8]} 34... a5
{[%clk 0:00:55.5]} 35. bxa5 {[%clk 0:00:25.7]} 35... Rxa5 {[%clk 0:00:53.4]} 36.
Bh8 {[%clk 0:00:21.8]} 36... c5 {[%clk 0:00:41.5]} 1/2-1/2

[Event "*** Titled Tuesday Blitz"]
[Site "Chess.com"]
[Date "2020.04.14"]
[Round "5"]
[White "BaMBoMaTTo"]
[Black "ElliPaehtz"]
[Result "0-1"]
[WhiteElo "2706"]
[BlackElo "2567"]
[TimeControl "180+1"]
[EndTime "10:50:18 PDT"]
[Termination "ElliPaehtz won on time"]

1. e4 {[%clk 0:03:00]} 1... c5 {[%clk 0:02:59.1]} 2. Nf3 {[%clk 0:02:58.9]} 2...
d6 {[%clk 0:02:54]} 3. d4 {[%clk 0:02:59.1]} 3... cxd4 {[%clk 0:02:52.9]} 4.
Nxd4 {[%clk 0:03:00]} 4... Nf6 {[%clk 0:02:51.9]} 5. Nc3 {[%clk 0:03:00.6]} 5...
a6 {[%clk 0:02:51.9]} 6. Bg5 {[%clk 0:03:00.8]} 6... Nbd7 {[%clk 0:02:50.2]} 7.
Qe2 {[%clk 0:03:00.6]} 7... g6 {[%clk 0:02:47.5]} 8. f4 {[%clk 0:02:59]} 8...
Bg7 {[%clk 0:02:46.9]} 9. O-O-O {[%clk 0:02:57.4]} 9... O-O {[%clk 0:02:46.8]}
10. e5 {[%clk 0:02:56.8]} 10... dxe5 {[%clk 0:02:45.3]} 11. fxe5 {[%clk
0:02:57.7]} 11... Qa5 {[%clk 0:02:44.8]} 12. Nf3 {[%clk 0:02:54.9]} 12... Ng4
{[%clk 0:02:39.1]} 13. Rd5 {[%clk 0:02:54.8]} 13... b5 {[%clk 0:02:37.4]} 14. h3
{[%clk 0:02:54.6]} 14... Nh6 {[%clk 0:02:05.1]} 15. g4 {[%clk 0:02:54]} 15...
Nb6 {[%clk 0:02:03.8]} 16. Rc5 {[%clk 0:02:23.7]} 16... f6 {[%clk 0:01:58.8]}
17. Bd2 {[%clk 0:01:47.5]} 17... Nd7 {[%clk 0:01:53.2]} 18. Rd5 {[%clk
0:01:13.1]} 18... fxe5 {[%clk 0:01:47.5]} 19. Bg2 {[%clk 0:01:01]} 19... e6
{[%clk 0:01:42.9]} 20. Rxd7 {[%clk 0:00:55.8]} 20... Bxd7 {[%clk 0:01:41.9]} 21.
Nxe5 {[%clk 0:00:56.3]} 21... b4 {[%clk 0:01:37.3]} 22. Nxd7 {[%clk 0:00:46]}
22... bxc3 {[%clk 0:01:37.1]} 23. Qxe6+ {[%clk 0:00:46.2]} 23... Kh8 {[%clk
0:01:15.2]} 24. Bxa8 {[%clk 0:00:28.5]} 24... cxd2+ {[%clk 0:01:08.9]} 25. Kb1
{[%clk 0:00:28.5]} 25... Rxa8 {[%clk 0:01:04]} 26. Rd1 {[%clk 0:00:22]} 26...
Qb4 {[%clk 0:00:55.9]} 27. Qb3 {[%clk 0:00:20.7]} 27... Qf4 {[%clk 0:00:44.2]}
28. Nc5 {[%clk 0:00:10.7]} 28... Rb8 {[%clk 0:00:42.6]} 0-1

[Event "*** Titled Tuesday Blitz"]
[Site "Chess.com"]
[Date "2020.04.14"]
[Round "5"]
[White "Muracle"]
[Black "davidkalashian"]
[Result "1-0"]
[WhiteElo "2684"]
[BlackElo "2509"]
[TimeControl "180+1"]
[EndTime "10:50:18 PDT"]
[Termination "Muracle won by resignation"]

1. e4 {[%clk 0:03:00.9]} 1... c6 {[%clk 0:02:59.4]} 2. Nf3 {[%clk 0:03:00.3]}
2... g6 {[%clk 0:03:00.3]} 3. d3 {[%clk 0:03:01]} 3... Bg7 {[%clk 0:03:00.4]} 4.
Nc3 {[%clk 0:03:01.2]} 4... d6 {[%clk 0:03:01.3]} 5. Be3 {[%clk 0:02:59]} 5...
Nf6 {[%clk 0:03:02.2]} 6. h3 {[%clk 0:02:57.3]} 6... O-O {[%clk 0:03:01.2]} 7.
Qd2 {[%clk 0:02:57.2]} 7... Re8 {[%clk 0:02:59.8]} 8. a4 {[%clk 0:02:52.9]} 8...
e5 {[%clk 0:02:57.6]} 9. Be2 {[%clk 0:02:50]} 9... d5 {[%clk 0:02:56.9]} 10. Bh6
{[%clk 0:02:43.3]} 10... dxe4 {[%clk 0:02:48.4]} 11. dxe4 {[%clk 0:02:42.7]}
11... Qxd2+ {[%clk 0:02:42.2]} 12. Bxd2 {[%clk 0:02:43.6]} 12... Nbd7 {[%clk
0:02:39.3]} 13. Be3 {[%clk 0:02:42.5]} 13... Bf8 {[%clk 0:02:35.8]} 14. Nd2
{[%clk 0:02:40.9]} 14... Bb4 {[%clk 0:02:32.8]} 15. f3 {[%clk 0:02:39.7]} 15...
Bc5 {[%clk 0:02:23.3]} 16. Kf2 {[%clk 0:02:39]} 16... Bxe3+ {[%clk 0:02:20.4]}
17. Kxe3 {[%clk 0:02:39]} 17... Nc5 {[%clk 0:02:20.3]} 18. Nc4 {[%clk
0:02:36.2]} 18... Nh5 {[%clk 0:02:08.8]} 19. Rhd1 {[%clk 0:02:30.9]} 19... f6
{[%clk 0:02:02.8]} 20. b4 {[%clk 0:02:27.9]} 20... Ne6 {[%clk 0:02:00.2]} 21.
Nd6 {[%clk 0:02:27.8]} 21... Re7 {[%clk 0:01:57.8]} 22. Bc4 {[%clk 0:02:26.2]}
22... Kg7 {[%clk 0:01:57.9]} 23. Nxc8 {[%clk 0:02:20.4]} 23... Rxc8 {[%clk
0:01:57]} 24. Bxe6 {[%clk 0:02:20.2]} 24... Rxe6 {[%clk 0:01:56.8]} 25. Rd7+
{[%clk 0:02:20.2]} 25... Kh6 {[%clk 0:01:54.5]} 26. Rxb7 {[%clk 0:02:17.9]}
26... f5 {[%clk 0:01:46.2]} 27. Rd1 {[%clk 0:02:13.2]} 27... f4+ {[%clk
0:01:44.3]} 28. Kf2 {[%clk 0:02:11.1]} 28... a5 {[%clk 0:01:40.4]} 29. bxa5
{[%clk 0:02:04.2]} 29... Ra8 {[%clk 0:01:40.7]} 30. Rdd7 {[%clk 0:02:03.2]}
30... Kg5 {[%clk 0:01:37.3]} 31. Ra7 {[%clk 0:01:36]} 31... Rb8 {[%clk 0:01:22]}
32. a6 {[%clk 0:01:35.5]} 32... Rb2 {[%clk 0:01:21.4]} 33. Rd2 {[%clk
0:01:34.9]} 33... c5 {[%clk 0:01:17]} 34. Rb7 {[%clk 0:01:06]} 34... Reb6 {[%clk
0:01:04.5]} 35. a7 {[%clk 0:01:01.8]} 35... Rxb7 {[%clk 0:01:01.3]} 36. a8=Q
{[%clk 0:01:00.6]} 36... Ng3 {[%clk 0:01:02.2]} 37. Qd8+ {[%clk 0:00:54.2]}
37... Kh5 {[%clk 0:01:01.2]} 38. Nd5 {[%clk 0:00:47.5]} 38... Rb1 {[%clk
0:00:57]} 39. Nxf4+ {[%clk 0:00:38.6]} 39... exf4 {[%clk 0:00:53.5]} 40. Rd5+
{[%clk 0:00:37.1]} 40... Kh6 {[%clk 0:00:49.3]} 41. Qf8+ {[%clk 0:00:36.4]}
41... Rg7 {[%clk 0:00:44.4]} 42. Qxf4+ {[%clk 0:00:36]} 42... g5 {[%clk
0:00:44.8]} 43. Qxg3 {[%clk 0:00:35.7]} 1-0

[Event "*** Titled Tuesday Blitz"]
[Site "Chess.com"]
[Date "2020.04.14"]
[Round "5"]
[White "Haykoooo0o"]
[Black "mphofmann"]
[Result "1-0"]
[WhiteElo "2595"]
[BlackElo "2261"]
[TimeControl "180+1"]
[EndTime "10:50:20 PDT"]
[Termination "Haykoooo0o won on time"]

1. d4 {[%clk 0:03:00.9]} 1... b6 {[%clk 0:02:58.4]} 2. c4 {[%clk 0:03:01.8]}
2... Bb7 {[%clk 0:02:57.7]} 3. Nc3 {[%clk 0:03:00.1]} 3... e6 {[%clk 0:02:53.9]}
4. e4 {[%clk 0:02:59.4]} 4... Bb4 {[%clk 0:02:52.2]} 5. f3 {[%clk 0:02:58.7]}
5... f5 {[%clk 0:02:51.3]} 6. e5 {[%clk 0:02:57.2]} 6... Nh6 {[%clk 0:02:50.1]}
7. Ne2 {[%clk 0:02:55.9]} 7... O-O {[%clk 0:02:45.7]} 8. a3 {[%clk 0:02:56.2]}
8... Bxc3+ {[%clk 0:02:44.5]} 9. bxc3 {[%clk 0:02:57.1]} 9... Nc6 {[%clk
0:02:38]} 10. Be3 {[%clk 0:02:56.4]} 10... Na5 {[%clk 0:02:37]} 11. Nc1 {[%clk
0:02:49.9]} 11... Ba6 {[%clk 0:02:32.8]} 12. Qa4 {[%clk 0:02:36.8]} 12... Nf7
{[%clk 0:02:16.4]} 13. Nb3 {[%clk 0:02:35]} 13... Nxb3 {[%clk 0:02:03.8]} 14.
Qxb3 {[%clk 0:02:35.9]} 14... d6 {[%clk 0:01:56.4]} 15. f4 {[%clk 0:02:34.2]}
15... c6 {[%clk 0:01:37.8]} 16. Be2 {[%clk 0:02:30.9]} 16... d5 {[%clk
0:01:34.9]} 17. cxd5 {[%clk 0:02:22.6]} 17... Bxe2 {[%clk 0:01:30.6]} 18. dxe6
{[%clk 0:02:21.5]} 18... Bd3 {[%clk 0:01:18.3]} 19. exf7+ {[%clk 0:02:20.1]}
19... Rxf7 {[%clk 0:01:18.4]} 20. c4 {[%clk 0:02:18.5]} 20... Be4 {[%clk
0:01:15.7]} 21. O-O {[%clk 0:02:18.2]} 21... a6 {[%clk 0:01:06.6]} 22. Rad1
{[%clk 0:02:18.6]} 22... b5 {[%clk 0:01:06.3]} 23. a4 {[%clk 0:02:00.7]} 23...
bxc4 {[%clk 0:00:49.4]} 24. Qxc4 {[%clk 0:02:01.6]} 24... Bd5 {[%clk 0:00:46.7]}
25. Qc5 {[%clk 0:02:00.8]} 25... Rb7 {[%clk 0:00:39.5]} 26. Rb1 {[%clk
0:02:00.6]} 26... Rab8 {[%clk 0:00:39.4]} 27. Rxb7 {[%clk 0:02:00.5]} 27... Rxb7
{[%clk 0:00:40.3]} 28. Bf2 {[%clk 0:01:51.7]} 28... Rb2 {[%clk 0:00:29]} 29. Rc1
{[%clk 0:01:44.4]} 29... Qb8 {[%clk 0:00:25.8]} 30. h3 {[%clk 0:01:37]} 30... h6
{[%clk 0:00:25.4]} 31. Rc2 {[%clk 0:01:22.8]} 31... Rb1+ {[%clk 0:00:23.1]} 32.
Kh2 {[%clk 0:01:21.4]} 32... Qb3 {[%clk 0:00:15]} 33. Qc3 {[%clk 0:01:01.9]}
33... Qxa4 {[%clk 0:00:07.8]} 34. e6 {[%clk 0:00:54.4]} 1-0

[Event "*** Titled Tuesday Blitz"]
[Site "Chess.com"]
[Date "2020.04.14"]
[Round "5"]
[White "UCantHandleDenker"]
[Black "Fins0905"]
[Result "0-1"]
[WhiteElo "2574"]
[BlackElo "2747"]
[TimeControl "180+1"]
[EndTime "10:50:21 PDT"]
[Termination "Fins0905 won by resignation"]

1. Nf3 {[%clk 0:02:56.4]} 1... d5 {[%clk 0:02:57.8]} 2. g3 {[%clk 0:02:56.3]}
2... c6 {[%clk 0:02:57.3]} 3. Bg2 {[%clk 0:02:56.8]} 3... Bg4 {[%clk 0:02:56.4]}
4. O-O {[%clk 0:02:57.1]} 4... Nd7 {[%clk 0:02:55.8]} 5. d3 {[%clk 0:02:57.4]}
5... e5 {[%clk 0:02:54.7]} 6. Nbd2 {[%clk 0:02:57.5]} 6... Ngf6 {[%clk
0:02:54.3]} 7. h3 {[%clk 0:02:57.8]} 7... Bh5 {[%clk 0:02:54.1]} 8. e4 {[%clk
0:02:57.6]} 8... dxe4 {[%clk 0:02:53.5]} 9. dxe4 {[%clk 0:02:57.5]} 9... Be7
{[%clk 0:02:53.5]} 10. Qe1 {[%clk 0:02:57.5]} 10... O-O {[%clk 0:02:45.6]} 11.
Nc4 {[%clk 0:02:56.8]} 11... Qc7 {[%clk 0:02:44.6]} 12. a4 {[%clk 0:02:56.8]}
12... b5 {[%clk 0:02:32.2]} 13. Na5 {[%clk 0:02:55.9]} 13... a6 {[%clk
0:02:26.8]} 14. b4 {[%clk 0:02:49]} 14... Rfe8 {[%clk 0:02:04.9]} 15. c4 {[%clk
0:02:20.6]} 15... c5 {[%clk 0:01:47.2]} 16. Bb2 {[%clk 0:01:38.1]} 16... cxb4
{[%clk 0:01:39.1]} 17. g4 {[%clk 0:00:45.7]} 17... Bg6 {[%clk 0:01:36.9]} 18.
axb5 {[%clk 0:00:45]} 18... axb5 {[%clk 0:01:36.4]} 19. g5 {[%clk 0:00:45]}
19... Nh5 {[%clk 0:01:33.2]} 20. cxb5 {[%clk 0:00:16.2]} 20... Rxa5 {[%clk
0:01:32.7]} 21. Rc1 {[%clk 0:00:16.9]} 21... Qb8 {[%clk 0:01:30.3]} 22. Qd1
{[%clk 0:00:13.3]} 22... Rd8 {[%clk 0:01:23.9]} 23. Qb3 {[%clk 0:00:09]} 23...
Rxb5 {[%clk 0:01:21.1]} 24. Rfd1 {[%clk 0:00:08.8]} 24... Nf4 {[%clk 0:01:12]}
25. Bf1 {[%clk 0:00:07.9]} 25... Rb7 {[%clk 0:01:12.1]} 26. Nh4 {[%clk
0:00:06.6]} 26... Bxg5 {[%clk 0:01:07.4]} 27. Nxg6 {[%clk 0:00:06.2]} 27... hxg6
{[%clk 0:01:08.3]} 28. Bc4 {[%clk 0:00:05.8]} 28... Nc5 {[%clk 0:00:57]} 29. Qg3
{[%clk 0:00:04.9]} 29... Bf6 {[%clk 0:00:48.6]} 30. h4 {[%clk 0:00:03.5]} 30...
Rbd7 {[%clk 0:00:43.3]} 31. Re1 {[%clk 0:00:02.7]} 31... Ncd3 {[%clk 0:00:42.4]}
32. Bxd3 {[%clk 0:00:02]} 32... Nxd3 {[%clk 0:00:42]} 33. Qg4 {[%clk 0:00:02.9]}
0-1

[Event "*** Titled Tuesday Blitz"]
[Site "Chess.com"]
[Date "2020.04.14"]
[Round "5"]
[White "chiwii"]
[Black "SlavenPastar"]
[Result "0-1"]
[WhiteElo "2226"]
[BlackElo "2410"]
[TimeControl "180+1"]
[EndTime "10:50:21 PDT"]
[Termination "SlavenPastar won by resignation"]

1. e4 {[%clk 0:02:30.1]} 1... b6 {[%clk 0:02:59.6]} 2. d4 {[%clk 0:02:29.7]}
2... Bb7 {[%clk 0:02:59.8]} 3. Nc3 {[%clk 0:02:29.8]} 3... e6 {[%clk 0:02:59.1]}
4. Nf3 {[%clk 0:02:30.1]} 4... Bb4 {[%clk 0:02:59.4]} 5. Bd3 {[%clk 0:02:29.9]}
5... Nf6 {[%clk 0:02:59.1]} 6. Qe2 {[%clk 0:02:29.8]} 6... d5 {[%clk 0:02:59.3]}
7. e5 {[%clk 0:02:28]} 7... Ne4 {[%clk 0:02:59.5]} 8. Bd2 {[%clk 0:02:27.9]}
8... Nxd2 {[%clk 0:02:59.3]} 9. Nxd2 {[%clk 0:02:28.8]} 9... c5 {[%clk 0:02:57]}
10. dxc5 {[%clk 0:02:27.4]} 10... bxc5 {[%clk 0:02:56.9]} 11. O-O {[%clk
0:02:27.5]} 11... c4 {[%clk 0:02:54.3]} 12. Bxc4 {[%clk 0:02:23.8]} 12... dxc4
{[%clk 0:02:52.9]} 13. Qxc4 {[%clk 0:02:24]} 13... Bxc3 {[%clk 0:02:51.4]} 14.
Qxc3 {[%clk 0:02:23.9]} 14... O-O {[%clk 0:02:48.9]} 15. Nf3 {[%clk 0:02:23]}
15... Qc8 {[%clk 0:02:46.9]} 16. Qe3 {[%clk 0:02:20.4]} 16... Nd7 {[%clk
0:02:43.3]} 17. c3 {[%clk 0:02:18.6]} 17... Bxf3 {[%clk 0:02:42.5]} 18. Qxf3
{[%clk 0:02:18.5]} 18... Nxe5 {[%clk 0:02:42]} 19. Qe4 {[%clk 0:02:18.6]} 19...
Ng6 {[%clk 0:02:38.5]} 20. Rad1 {[%clk 0:02:18]} 20... Rb8 {[%clk 0:02:37.9]}
21. Qe2 {[%clk 0:02:15.4]} 21... Qb7 {[%clk 0:02:37.8]} 22. b4 {[%clk
0:02:14.3]} 22... Rfc8 {[%clk 0:02:37.8]} 23. Qe3 {[%clk 0:02:10.6]} 23... Qb6
{[%clk 0:02:37]} 24. Qf3 {[%clk 0:02:09.2]} 24... Qc6 {[%clk 0:02:34.8]} 25. Rd3
{[%clk 0:01:59.7]} 25... Qxf3 {[%clk 0:02:27.3]} 26. Rxf3 {[%clk 0:02:00.6]}
26... Rc4 {[%clk 0:02:26.3]} 27. g3 {[%clk 0:01:57.8]} 27... Rbc8 {[%clk
0:02:25.3]} 28. Rd1 {[%clk 0:01:55.7]} 28... Rxc3 {[%clk 0:02:21]} 29. Rd8+
{[%clk 0:01:53.9]} 29... Rxd8 {[%clk 0:02:18.7]} 30. Rxc3 {[%clk 0:01:54.4]}
30... Ne5 {[%clk 0:02:10.9]} 31. Rc7 {[%clk 0:01:54.1]} 31... Ra8 {[%clk
0:02:03]} 32. a4 {[%clk 0:01:50.2]} 32... Kf8 {[%clk 0:01:58.8]} 33. f4 {[%clk
0:01:44.5]} 33... Ng6 {[%clk 0:01:54.6]} 34. a5 {[%clk 0:01:43.8]} 34... Ne7
{[%clk 0:01:53]} 35. b5 {[%clk 0:01:43.3]} 35... Ke8 {[%clk 0:01:49.4]} 36. Kf2
{[%clk 0:01:41.4]} 36... Kd8 {[%clk 0:01:48.7]} 37. Rb7 {[%clk 0:01:39.7]} 37...
h5 {[%clk 0:01:49]} 38. h4 {[%clk 0:01:34.7]} 38... g6 {[%clk 0:01:47.2]} 39.
Kf3 {[%clk 0:01:34.8]} 39... Ke8 {[%clk 0:01:33.5]} 40. g4 {[%clk 0:01:23]}
40... hxg4+ {[%clk 0:01:30.9]} 41. Kxg4 {[%clk 0:01:23.9]} 41... Nf5 {[%clk
0:01:24.2]} 42. b6 {[%clk 0:01:12.1]} 42... axb6 {[%clk 0:01:22.6]} 43. axb6
{[%clk 0:01:10.2]} 43... Nd6 {[%clk 0:01:19.3]} 44. Ra7 {[%clk 0:01:08.5]} 44...
Rb8 {[%clk 0:01:19.3]} 45. Ra6 {[%clk 0:00:59.4]} 45... Nc4 {[%clk 0:01:16.1]}
46. Kg5 {[%clk 0:00:56.7]} 46... Nxb6 {[%clk 0:01:12.9]} 47. h5 {[%clk
0:00:53.6]} 47... gxh5 {[%clk 0:01:12]} 48. Kxh5 {[%clk 0:00:53.4]} 48... Nd7
{[%clk 0:01:10.2]} 49. Kh6 {[%clk 0:00:46.3]} 49... Ke7 {[%clk 0:01:10.1]} 50.
Ra7 {[%clk 0:00:45.4]} 50... Rb5 {[%clk 0:01:08.5]} 51. Kg7 {[%clk 0:00:43.4]}
51... Rf5 {[%clk 0:01:07.4]} 52. Ra1 {[%clk 0:00:38.5]} 52... Rxf4 {[%clk
0:01:04.6]} 53. Rd1 {[%clk 0:00:36.6]} 53... e5 {[%clk 0:01:04]} 54. Re1 {[%clk
0:00:36.9]} 54... e4 {[%clk 0:01:04]} 0-1

[Event "*** Titled Tuesday Blitz"]
[Site "Chess.com"]
[Date "2020.04.14"]
[Round "5"]
[White "Aygehovit1992"]
[Black "Atanejhad"]
[Result "1-0"]
[WhiteElo "2724"]
[BlackElo "2546"]
[TimeControl "180+1"]
[EndTime "10:50:22 PDT"]
[Termination "Aygehovit1992 won on time"]

1. e4 {[%clk 0:03:00.9]} 1... e5 {[%clk 0:02:56]} 2. Nf3 {[%clk 0:03:00.9]} 2...
Nc6 {[%clk 0:02:56.4]} 3. Bb5 {[%clk 0:03:01.5]} 3... a6 {[%clk 0:02:56.5]} 4.
Ba4 {[%clk 0:03:02]} 4... Nf6 {[%clk 0:02:56.1]} 5. d3 {[%clk 0:03:02.6]} 5...
b5 {[%clk 0:02:54.9]} 6. Bb3 {[%clk 0:03:02.3]} 6... Be7 {[%clk 0:02:55.8]} 7.
c3 {[%clk 0:03:00.8]} 7... d6 {[%clk 0:02:56.1]} 8. O-O {[%clk 0:03:01]} 8...
O-O {[%clk 0:02:56.7]} 9. Nbd2 {[%clk 0:03:01.3]} 9... Na5 {[%clk 0:02:48.5]}
10. Bc2 {[%clk 0:03:00.9]} 10... c5 {[%clk 0:02:49.4]} 11. Re1 {[%clk
0:03:00.7]} 11... Re8 {[%clk 0:02:48.5]} 12. Nf1 {[%clk 0:03:00.8]} 12... Bf8
{[%clk 0:02:48.9]} 13. Ng3 {[%clk 0:03:01.1]} 13... g6 {[%clk 0:02:49.4]} 14. a4
{[%clk 0:02:59.8]} 14... Bb7 {[%clk 0:02:46.5]} 15. Bg5 {[%clk 0:02:55.8]} 15...
h6 {[%clk 0:02:44.7]} 16. Bd2 {[%clk 0:02:55.8]} 16... Bg7 {[%clk 0:02:44.8]}
17. axb5 {[%clk 0:02:43.4]} 17... axb5 {[%clk 0:02:44.8]} 18. b4 {[%clk
0:02:44.2]} 18... cxb4 {[%clk 0:02:43]} 19. cxb4 {[%clk 0:02:45.1]} 19... Nc6
{[%clk 0:02:43.5]} 20. Bb3 {[%clk 0:02:45.1]} 20... d5 {[%clk 0:02:13.8]} 21.
Rxa8 {[%clk 0:02:40]} 21... Bxa8 {[%clk 0:02:12.8]} 22. Qa1 {[%clk 0:02:34.2]}
22... dxe4 {[%clk 0:02:05.3]} 23. dxe4 {[%clk 0:02:33.9]} 23... Nd4 {[%clk
0:01:59.3]} 24. Nxd4 {[%clk 0:02:33.6]} 24... exd4 {[%clk 0:02:00.2]} 25. Qa2
{[%clk 0:02:33.4]} 25... Qd7 {[%clk 0:01:45.4]} 26. e5 {[%clk 0:02:12.6]} 26...
Nd5 {[%clk 0:01:45]} 27. f4 {[%clk 0:02:11.2]} 27... Nc3 {[%clk 0:00:28.5]} 28.
e6 {[%clk 0:02:06.7]} 28... fxe6 {[%clk 0:00:20.5]} 29. Bxe6+ {[%clk 0:02:04.7]}
29... Rxe6 {[%clk 0:00:19.5]} 30. Qxe6+ {[%clk 0:02:03.4]} 30... Qxe6 {[%clk
0:00:19.7]} 31. Rxe6 {[%clk 0:02:04.3]} 31... Bd5 {[%clk 0:00:18.7]} 32. Rxg6
{[%clk 0:02:02]} 32... Kf7 {[%clk 0:00:18]} 33. Rxg7+ {[%clk 0:01:59.6]} 33...
Kxg7 {[%clk 0:00:17.6]} 34. Nf5+ {[%clk 0:02:00.1]} 34... Kf6 {[%clk 0:00:17.9]}
35. Nxd4 {[%clk 0:02:00.8]} 35... Ne4 {[%clk 0:00:16.6]} 36. Be1 {[%clk
0:02:00.7]} 36... h5 {[%clk 0:00:16.7]} 37. h3 {[%clk 0:01:59.1]} 37... Bc4
{[%clk 0:00:16.9]} 38. g4 {[%clk 0:01:57.1]} 38... hxg4 {[%clk 0:00:16.9]} 39.
hxg4 {[%clk 0:01:58]} 39... Nd6 {[%clk 0:00:17.5]} 40. Kh2 {[%clk 0:01:54.6]}
40... Ne8 {[%clk 0:00:12]} 41. Kg3 {[%clk 0:01:53.9]} 41... Ng7 {[%clk
0:00:12.5]} 42. Bc3 {[%clk 0:01:52.3]} 42... Kf7 {[%clk 0:00:10.4]} 43. f5
{[%clk 0:01:52.2]} 43... Ne8 {[%clk 0:00:08.5]} 44. g5 {[%clk 0:01:50.8]} 44...
Nd6 {[%clk 0:00:09.4]} 45. g6+ {[%clk 0:01:49.2]} 45... Ke7 {[%clk 0:00:09.8]}
46. Kf4 {[%clk 0:01:37.1]} 46... Bd3 {[%clk 0:00:09.8]} 47. Nc6+ {[%clk
0:01:31.5]} 47... Kd7 {[%clk 0:00:09.9]} 48. Ne5+ {[%clk 0:01:31.4]} 1-0